bitfinex-derivatives/quotes_SOLF0:USTF0_20250131
["timestamp","ask_amount","ask_price","bid_price","bid_amount"]
[1738339698411,0.02661581,239.81,239.8,4.1694]
[1738339698915,1.581e-05,239.81,239.8,3.89877063]
[1738339741058,1.581e-05,239.81,239.78,0.03013188]
[1738339741059,1.581e-05,239.81,239.78,4.19983188]
[1738339741652,1.581e-05,239.81,239.78,0.03013188]
[1738339741856,1.581e-05,239.81,239.79,4.1696]
[1738339742958,1.581e-05,239.81,239.78,4.19973188]
[1738339743258,1.581e-05,239.81,239.78,0.03013188]
[1738339743455,7.21097306,239.81,239.71,7.21095725]
[1738339743657,7.21097306,239.81,239.73,4.1706]
[1738339743856,7.21097306,239.81,239.71,7.21095725]
[1738339744355,7.21095725,239.72,239.57,108.03037864]
[1738339744554,7.21095725,239.6,239.57,108.03037864]
[1738339744756,7.21095725,239.6,239.55,4.1737]
[1738339744956,7.21095725,239.6,239.54,108.03037864]
[1738339745157,0.02783792,239.6,239.54,115.24133589]
[1738339745358,0.02783792,239.6,239.54,108.03037864]
[1738339745359,7.21095725,239.55,239.54,108.03037864]
[1738339745559,7.21095725,239.55,239.54,103.63877864]
[1738339745760,7.21095725,239.55,239.54,101.44297864]
[1738339747450,7.21095725,239.55,239.44,30.994294]
[1738339747451,7.21095725,239.55,239.42,7.21095725]
[1738339747658,7.21095725,239.45,239.38,7.21095725]
[1738339747857,7.21095725,239.43,239.36,7.21095725]
[1738339748355,0.02833657,239.42,239.36,7.21095725]
[1738339748662,0.02833657,239.42,239.37,11.30370708]
[1738339749156,2.88,239.59,239.4,11.30370708]
[1738339749363,11.30370708,239.58,239.45,11.30370708]
[1738339749558,11.30370708,239.58,239.5,4.1746]
[1738339749759,5.75071513,239.54,239.5,4.1746]
[1738339749958,5.75071513,239.54,239.45,11.30370708]
[1738339750160,5.75071513,239.54,239.52,4.1742]
[1738339751560,5.437e-05,239.55,239.54,4.174]
[1738339751763,5.75071513,239.62,239.53,11.30370708]
[1738339751962,5.75071513,239.62,239.56,11.30370708]
[1738339752164,5.75071513,239.62,239.6,4.1729]
[1738339752969,0.02705804,239.63,239.61,4.1727]
[1738339753270,0.02705804,239.63,239.62,11.30370708]
[1738339753774,5.75071513,239.67,239.66,4.1719]
[1738339754072,5.75071513,239.67,239.53,12.62650708]
[1738339754269,5.75071513,239.67,239.56,11.30370708]
[1738339754468,5.75071513,239.67,239.53,12.62650708]
[1738339754766,5.75071513,239.67,239.53,1.3228]
[1738339754961,0.02989266,239.62,239.6,4.1729]
[1738339756368,0.02989266,239.62,239.58,0.02997547]
[1738339758371,5.75071513,239.61,239.47,18.06189119]
[1738339758571,5.75071513,239.61,239.51,4.1745]
[1738339758870,5.75071513,239.61,239.47,18.06189119]
[1738339759271,5.75071513,239.61,239.59,4.1731]
[1738339759473,1.3889,239.64,239.59,4.1731]
[1738339759772,0.03168937,239.62,239.59,4.1731]
[1738339760171,0.03168937,239.62,239.47,18.06189119]
[1738339760377,1.3889,239.64,239.47,18.06189119]
[1738339760877,1.3889,239.64,239.58,4.1731]
[1738339761376,0.02934789,239.63,239.47,18.06189119]
[1738339761577,1.3889,239.64,239.58,4.1733]
[1738339761976,0.03148212,239.63,239.47,18.06189119]
[1738339762176,1.4306,239.63,239.47,18.06189119]
[1738339762473,0.02738176,239.57,239.47,18.06189119]
[1738339763177,0.02738176,239.57,239.52,4.1741]
[1738339763478,0.02738176,239.57,239.47,18.06189119]
[1738339763678,0.02738176,239.57,239.54,4.1739]
[1738339765081,0.02738176,239.57,239.55,4.1738]
[1738339765382,0.02738176,239.57,239.47,18.06189119]
[1738339765581,0.02738176,239.57,239.56,4.1736]
[1738339766282,0.02738176,239.57,239.47,18.06189119]
[1738339766482,0.02738176,239.57,239.56,4.1736]
[1738339770786,0.02738176,239.57,239.47,18.06189119]
[1738339771482,0.02738176,239.57,239.56,4.1736]
[1738339771882,38.51992894,239.57,239.51,8.25566773]
[1738339773286,5.77809689,239.57,239.56,4.1736]
[1738339773491,69.31008339,239.61,239.55,18.06189119]
[1738339773782,69.31008339,239.61,239.59,18.06189119]
[1738339774583,2.89705345,239.61,239.6,4.1729]
[1738339774785,94.47389482,239.65,239.6,11.27575624]
[1738339774985,34.07038364,239.63,239.58,0.02748588]
[1738339775185,2.229e-05,239.63,239.58,0.02748588]
[1738339775890,4.184e-05,239.63,239.62,4.1726]
[1738339776091,94.47389482,239.65,239.62,22.55151248]
[1738339776386,48.72346593,239.65,239.62,11.27575624]
[1738339776788,1.384,239.79,239.62,11.27575624]
[1738339776986,1.384,239.79,239.66,11.27575624]
[1738339777190,4.1703,239.76,239.66,15.44745624]
[1738339777386,0.03080015,239.74,239.69,0.03155875]
[1738339777889,0.03080015,239.74,239.69,4.20285875]
[1738339778091,0.03080015,239.74,239.69,0.03155875]
[1738339779189,4.1712,239.7,239.69,0.03155875]
[1738339781795,0.03080015,239.74,239.69,0.03155875]
[1738339785293,4.1712,239.7,239.69,0.03155875]
[1738339786188,0.03080015,239.74,239.69,0.03155875]
[1738339786391,4.171,239.72,239.69,0.03155875]
[1738339787994,0.03080015,239.74,239.69,0.03155875]
[1738339788298,4.20130015,239.74,239.69,4.20275875]
[1738339789098,0.03080015,239.74,239.69,4.20275875]
[1738339790099,0.03080015,239.74,239.7,4.1712]
[1738339790494,0.03080015,239.74,239.69,0.03155875]
[1738339790694,0.03080015,239.74,239.71,4.1709]
[1738339790896,0.03080015,239.74,239.69,0.03155875]
[1738339793095,4.1708,239.73,239.69,0.03155875]
[1738339794694,0.03080015,239.74,239.69,0.03155875]
[1738339795895,0.03080015,239.74,239.7,4.1711]
[1738339796095,0.03080015,239.74,239.69,0.03155875]
[1738339796494,0.03080015,239.74,239.71,4.1709]
[1738339797301,0.03080015,239.74,239.72,4.1708]
[1738339797501,0.03080015,239.74,239.7,11.27575624]
[1738339798297,1.5e-07,239.74,239.73,11.27575624]
[1738339798502,1.5e-07,239.74,239.73,15.44645624]
[1738339800098,1.5e-07,239.74,239.73,4.1707]
[1738339800796,1.5e-07,239.74,239.69,0.03155875]
[1738339800993,1.5e-07,239.74,239.69,4.20285875]
[1738339801194,1.5e-07,239.74,239.69,0.03155875]
[1738339801804,1.5e-07,239.74,239.73,4.1707]
[1738339803202,1.5e-07,239.74,239.71,4.171]
[1738339803400,1.5e-07,239.74,239.69,0.03155875]
[1738339803806,4.17060015,239.74,239.69,0.03155875]
[1738339804005,1.5e-07,239.74,239.69,0.03155875]
[1738339804704,1.5e-07,239.74,239.73,4.1707]
[1738339806999,1.5e-07,239.74,239.73,15.44645624]
[1738339807606,4.1686,239.86,239.73,11.27575624]
[1738339807807,14.13205624,239.93,239.85,4.1685]
[1738339808007,15.53805624,239.93,239.85,4.1685]
[1738339808208,4.1679,239.9,239.85,4.1685]
[1738339808410,15.53805624,239.93,239.85,4.1685]
[1738339808905,0.02987417,239.91,239.87,0.02892828]
[1738339809710,4.1679,239.9,239.87,0.02892828]
[1738339810812,0.02987417,239.91,239.87,0.02892828]
[1738339811613,4.1679,239.89,239.87,0.02892828]
[1738339812214,4.1679,239.89,239.76,26.48672994]
[1738339812215,11.27575624,239.89,239.76,26.48672994]
[1738339812405,11.27575624,239.85,239.76,26.48672994]
[1738339812611,11.27575624,239.82,239.76,26.48672994]
[1738339813114,11.27575624,239.88,239.76,26.48672994]
[1738339813310,0.02782319,239.81,239.77,0.02670866]
[1738339813711,0.02782319,239.81,239.78,4.1698]
[1738339814318,0.02782319,239.81,239.77,4.19670866]
[1738339815517,0.02782319,239.81,239.77,0.02670866]
[1738339816824,0.02782319,239.81,239.77,4.19660866]
[1738339817121,0.02782319,239.81,239.77,0.02670866]
[1738339817725,4.19712319,239.81,239.77,0.02670866]
[1738339817915,0.02782319,239.81,239.77,0.02670866]
[1738339818719,0.02782319,239.81,239.77,4.19660866]
[1738339820230,0.02782319,239.81,239.77,0.02670866]
[1738339820928,0.02782319,239.81,239.78,4.1697]
[1738339821123,0.02782319,239.81,239.77,0.02670866]
[1738339821422,0.02782319,239.81,239.79,4.1696]
[1738339821627,0.02782319,239.81,239.77,0.02670866]
[1738339823627,4.1695,239.8,239.77,0.02670866]
[1738339824026,0.02782319,239.81,239.77,0.02670866]
[1738339824224,0.02782319,239.81,239.77,4.19660866]
[1738339824421,0.02782319,239.81,239.77,0.02670866]
[1738339824930,4.1695,239.8,239.77,0.02670866]
[1738339825427,0.02782319,239.81,239.77,0.02670866]
[1738339826333,4.1695,239.8,239.77,0.02670866]
[1738339826529,0.02782319,239.81,239.72,4.1707]
[1738339826833,11.27575624,239.79,239.71,26.49299034]
[1738339827035,11.27575624,239.79,239.71,30.66379034]
[1738339827828,4.1704,239.75,239.73,0.02875814]
[1738339828234,1.3652,239.78,239.73,0.02875814]
[1738339828434,4.1705,239.74,239.73,0.02875814]
[1738339828835,0.02642522,239.76,239.69,4.1712]
[1738339829032,0.02642522,239.76,239.68,4.1715]
[1738339829436,4.1705,239.74,239.66,114.65747821]
[1738339829740,4.1705,239.74,239.7,4.1712]
[1738339830037,4.1705,239.74,239.7,4.19886283]
[1738339830438,0.02642522,239.76,239.7,0.02766283]
[1738339831336,4.19672522,239.76,239.72,4.1708]
[1738339831535,0.02642522,239.76,239.7,0.02766283]
[1738339831839,4.1704,239.75,239.7,4.19866283]
[1738339832739,0.02642522,239.76,239.7,0.02766283]
[1738339833541,11.30218146,239.76,239.64,114.65747821]
[1738339834241,11.30218146,239.76,239.67,4.1717]
[1738339835238,4.171,239.72,239.67,4.1717]
[1738339836139,4.171,239.71,239.67,4.1717]
[1738339836841,4.1714,239.69,239.62,26.51093546]
[1738339837040,1.3427,239.7,239.59,152.224086]
[1738339837238,4.19865318,239.68,239.64,4.1721]
[1738339837637,0.02715318,239.68,239.64,4.1721]
[1738339841142,0.02715318,239.68,239.59,37.56660779]
[1738339841347,0.02715318,239.68,239.66,4.1717]
[1738339842047,0.02715318,239.68,239.61,11.27575624]
[1738339843247,0.02715318,239.68,239.65,4.1719]
[1738339843448,0.02715318,239.68,239.61,11.27575624]
[1738339843746,0.02715318,239.68,239.59,37.56660779]
[1738339843949,0.02715318,239.68,239.58,26.48158421]
[1738339844252,1.37345318,239.68,239.58,26.48158421]
[1738339844453,1.37345318,239.68,239.56,26.48158421]
[1738339844648,4.1722,239.65,239.6,4.1728]
[1738339845145,4.1723,239.64,239.6,4.1728]
[1738339846045,1.37345318,239.68,239.6,4.1728]
[1738339846242,4.1724,239.63,239.6,4.1728]
[1738339846449,4.1724,239.63,239.59,4.1731]
[1738339846954,4.20214813,239.63,239.59,4.1731]
[1738339847950,0.02974813,239.63,239.55,11.27575624]
[1738339848151,0.02974813,239.63,239.54,2.02149]
[1738339848353,11.27575624,239.61,239.54,2.02149]
[1738339848654,4.1734,239.58,239.54,2.02149]
[1738339849257,2.7843,239.6,239.54,2.02149]
[1738339849447,2.7843,239.6,239.54,6.19529]
[1738339850355,2.7843,239.6,239.54,2.02149]
[1738339850551,4.1733,239.58,239.54,2.02149]
[1738339851156,6.9574,239.6,239.54,6.19539]
[1738339851352,6.9574,239.6,239.54,2.02149]
[1738339851858,6.9574,239.6,239.55,4.1738]
[1738339852259,4.1732,239.59,239.55,4.1738]
[1738339854956,2.7843,239.6,239.56,4.1735]
[1738339856662,6.9573,239.6,239.56,4.1735]
[1738339858455,2.7843,239.6,239.54,2.02149]
[1738339858662,4.1735,239.57,239.54,2.02149]
[1738339858855,2.7843,239.6,239.54,2.02149]
[1738339859061,0.02726326,239.58,239.54,2.02149]
[1738339859766,4.20056326,239.58,239.54,6.19549]
[1738339865263,4.20056326,239.58,239.55,7.22685271]
[1738339865466,0.02726326,239.58,239.55,11.40045271]
[1738339865965,0.02726326,239.58,239.55,7.22685271]
[1738339866460,0.02726326,239.58,239.56,4.1736]
[1738339866858,0.02726326,239.58,239.55,11.40065271]
[1738339867064,0.02726326,239.58,239.54,2.02149]
[1738339867460,4.20066326,239.58,239.54,6.19549]
[1738339868261,0.02726326,239.58,239.54,2.02149]
[1738339868468,4.1738,239.55,239.54,2.02149]
[1738339868669,7.22685271,239.56,239.46,114.65747821]
[1738339868863,4.1747,239.5,239.46,114.65747821]
[1738339869068,7.22685271,239.49,239.46,114.65747821]
[1738339869364,11.40205271,239.47,239.46,114.65747821]
[1738339869765,11.40205271,239.47,239.46,110.26507821]
[1738339870271,4.1757,239.45,239.39,114.44157821]
[1738339870465,7.22685271,239.43,239.39,110.26507821]
[1738339870664,4.1764,239.4,239.39,110.26507821]
[1738339872371,7.22685271,239.41,239.39,110.26507821]
[1738339872666,0.02668132,239.43,239.34,4.1774]
[1738339873373,11.33574228,239.43,239.32,4.1777]
[1738339873770,11.33574228,239.43,239.28,11.30906096]
[1738339873972,4.1766,239.39,239.28,11.30906096]
[1738339874374,0.02975982,239.36,239.28,11.30906096]
[1738339874776,0.02975982,239.36,239.33,4.1776]
[1738339875573,0.02975982,239.36,239.34,4.1774]
[1738339876276,0.02975982,239.36,239.32,4.1777]
[1738339876676,0.02975982,239.36,239.28,11.30906096]
[1738339876877,0.02975982,239.36,239.33,4.1776]
[1738339877380,4.1777,239.33,239.28,4.1785]
[1738339878276,1.35195982,239.36,239.26,33.17539303]
[1738339878775,2.72025982,239.36,239.26,33.17539303]
[1738339879478,11.30906096,239.34,239.26,33.17539303]
[1738339879982,4.1781,239.31,239.26,33.17539303]
[1738339880581,0.03196019,239.31,239.26,33.17539303]
[1738339880874,11.34102115,239.31,239.23,115.04198938]
[1738339881279,4.1789,239.26,239.23,115.04198938]
[1738339881478,11.30906096,239.25,239.23,108.45338938]
[1738339881680,11.30906096,239.25,239.23,6.03542736]
[1738339881876,2.88,239.24,239.21,175.54714798]
[1738339882185,11.30906096,239.22,239.21,175.54714798]
[1738339883380,6.51800889,239.22,239.15,175.54714798]
[1738339883582,14.22044529,239.24,239.15,175.54714798]
[1738339883886,2.88,239.24,239.15,175.54714798]
[1738339884078,0.02816843,239.22,239.15,175.54714798]
[1738339884283,0.02816843,239.22,239.18,4.1801]
[1738339884685,0.02816843,239.22,239.15,175.54714798]
[1738339885187,0.02816843,239.22,239.21,4.1797]
[1738339885685,2.88,239.3,239.19,11.30906096]
[1738339885885,2.88,239.3,239.2,2.8872]
[1738339886490,2.88,239.3,239.22,11.30906096]
[1738339886689,11.30906096,239.39,239.25,11.30906096]
[1738339886889,11.30906096,239.39,239.2,2.8872]
[1738339886890,1.093e-05,239.27,239.23,0.02945387]
[1738339887090,11.30906096,239.42,239.26,11.30906096]
[1738339887285,11.30906096,239.42,239.36,4.1771]
[1738339887586,7.0559,239.43,239.3,11.30906096]
[1738339887587,11.30906096,239.45,239.3,11.30906096]
[1738339887890,14.18906096,239.48,239.33,11.30906096]
[1738339888091,11.30906096,239.48,239.33,11.30906096]
[1738339888391,0.03050524,239.42,239.38,4.1767]
[1738339888587,0.03050524,239.42,239.37,0.03041178]
[1738339888788,2.88,239.5,239.39,11.30906096]
[1738339889086,2.88,239.5,239.44,4.1757]
[1738339889290,11.30906096,239.54,239.39,11.30906096]
[1738339889588,11.30906096,239.54,239.42,11.30906096]
[1738339889789,10.70887389,239.53,239.43,4.1758]
[1738339890092,0.02659687,239.5,239.45,0.02736455]
[1738339891883,0.02659687,239.5,239.47,4.1752]
[1738339892087,0.02659687,239.5,239.45,11.33642551]
[1738339892687,0.02659687,239.5,239.47,4.1752]
[1738339893290,0.02659687,239.5,239.45,4.20286455]
[1738339893591,0.02659687,239.5,239.45,0.02736455]
[1738339893892,0.02659687,239.5,239.47,4.1752]
[1738339894292,0.02659687,239.5,239.45,0.02736455]
[1738339894692,0.02659687,239.5,239.48,4.175]
[1738339895093,11.30906096,239.6,239.46,11.30906096]
[1738339895396,4.1734,239.58,239.5,4.1746]
[1738339895592,11.30906096,239.6,239.46,11.30906096]
[1738339895793,11.30906096,239.6,239.44,1.3962]
[1738339895995,11.30906096,239.57,239.44,1.3962]
[1738339896296,0.02815179,239.54,239.5,0.02873595]
[1738339897399,4.1745,239.51,239.5,0.02873595]
[1738339901898,15.48356096,239.51,239.5,0.02873595]
[1738339902098,11.30906096,239.51,239.4,1.3408]
[1738339902293,4.1759,239.43,239.4,1.3408]
[1738339902596,11.30906096,239.48,239.4,1.3408]
[1738339903393,0.03052682,239.46,239.42,0.03084279]
[1738339903895,4.1757,239.45,239.42,0.03084279]
[1738339904703,0.03052682,239.46,239.42,0.03084279]
[1738339905200,4.20592682,239.46,239.42,0.03084279]
[1738339906001,4.1756,239.45,239.42,0.03084279]
[1738339907199,4.1758,239.44,239.42,0.03084279]
[1738339907395,0.03052682,239.46,239.42,0.03084279]
[1738339908503,4.1759,239.43,239.42,0.03084279]
[1738339913006,4.1758,239.44,239.42,0.03084279]
[1738339913306,0.03052682,239.46,239.42,0.03084279]
[1738339915712,4.1757,239.45,239.42,0.03084279]
[1738339916905,4.1758,239.44,239.42,0.03084279]
[1738339917409,0.03052682,239.46,239.42,0.03084279]
[1738339918304,4.1756,239.45,239.42,0.03084279]
[1738339919418,0.03052682,239.46,239.42,0.03084279]
[1738339919616,4.1758,239.44,239.42,0.03084279]
[1738339919814,0.03052682,239.46,239.42,11.33990375]
[1738339920420,0.03052682,239.46,239.45,4.1755]
[1738339921421,11.30906096,239.6,239.51,4.1745]
[1738339921722,4.1737,239.56,239.45,11.30906096]
[1738339922222,4.1737,239.56,239.51,4.1743]
[1738339922417,4.1738,239.55,239.45,11.30906096]
[1738339922616,4.1738,239.55,239.51,0.02758397]
[1738339923423,4.20105067,239.56,239.51,0.02758397]
[1738339923819,0.02725067,239.56,239.51,0.02758397]
[1738339924022,4.20095067,239.56,239.51,0.02758397]
[1738339924216,0.02725067,239.56,239.51,0.02758397]
[1738339924723,4.1743,239.53,239.51,0.02758397]
[1738339924924,0.02725067,239.56,239.51,0.02758397]
[1738339926021,4.1743,239.53,239.51,0.02758397]
[1738339926222,0.02725067,239.56,239.51,0.02758397]
[1738339926623,4.20105067,239.56,239.51,0.02758397]
[1738339927026,0.02725067,239.56,239.51,0.02758397]
[1738339927230,4.1738,239.55,239.51,0.02758397]
[1738339927823,4.1738,239.55,239.51,4.20198397]
[1738339928027,4.20095067,239.56,239.51,0.02758397]
[1738339928327,4.20095067,239.56,239.52,4.1742]
[1738339928528,4.174,239.54,239.51,0.02758397]
[1738339928926,11.30906096,239.54,239.51,0.02758397]
[1738339929123,4.1743,239.52,239.51,0.02758397]
[1738339932229,0.02725067,239.56,239.51,0.02758397]
[1738339932429,4.174,239.54,239.51,0.02758397]
[1738339932728,0.02725067,239.56,239.51,0.02758397]
[1738339933129,4.1743,239.53,239.51,0.02758397]
[1738339933429,0.02725067,239.56,239.51,0.02758397]
[1738339933629,11.30906096,239.54,239.51,0.02758397]
[1738339934722,4.1743,239.52,239.51,0.02758397]
[1738339935530,4.1743,239.52,239.51,8.397e-05]
[1738339936329,4.1741,239.54,239.51,8.397e-05]
[1738339937031,4.1738,239.55,239.51,4.17458397]
[1738339937332,0.02725067,239.56,239.51,8.397e-05]
[1738339937627,0.02725067,239.56,239.55,4.1738]
[1738339939229,0.02725067,239.56,239.53,4.174]
[1738339939436,0.02725067,239.56,239.52,2.7925]
[1738339939824,0.02725067,239.56,239.55,4.1738]
[1738339940025,11.30906096,239.66,239.52,2.7925]
[1738339940435,4.1726,239.63,239.52,2.7925]
[1738339941136,0.02656323,239.6,239.55,0.03195113]
[1738339941731,0.02656323,239.6,239.56,4.1735]
[1738339942033,0.02656323,239.6,239.55,0.03195113]
[1738339942929,4.19956323,239.6,239.55,4.20565113]
[1738339943125,4.19956323,239.6,239.55,0.03195113]
[1738339943531,0.02656323,239.6,239.56,4.1735]
[1738339943835,0.02656323,239.6,239.55,0.03195113]
[1738339944133,0.02656323,239.6,239.59,4.1731]
[1738339945133,11.30906096,239.72,239.57,11.30906096]
[1738339945327,0.76476276,239.71,239.57,11.30906096]
[1738339945830,0.76476276,239.71,239.62,4.1725]
[1738339946031,0.76476276,239.71,239.57,11.30906096]
[1738339946430,0.02872028,239.66,239.63,4.1724]
[1738339948733,0.02872028,239.66,239.62,4.20471933]
[1738339948933,0.02872028,239.66,239.63,11.30906096]
[1738339949134,90.2,239.78,239.64,11.30906096]
[1738339949335,0.76454257,239.77,239.7,11.30906096]
[1738339949535,4.1705,239.75,239.7,15.48006096]
[1738339949837,4.1705,239.75,239.7,11.30906096]
[1738339950332,4.19923744,239.75,239.7,11.33540013]
[1738339950533,4.19923744,239.75,239.7,0.02633917]
[1738339950933,4.1705,239.74,239.7,0.02633917]
[1738339951634,0.02873744,239.75,239.7,0.02633917]
[1738339951836,4.171,239.71,239.7,0.02633917]
[1738339953832,15.48006096,239.71,239.7,0.02633917]
[1738339954139,11.30906096,239.71,239.57,1.3867]
[1738339954334,11.30906096,239.66,239.57,1.3867]
[1738339954836,11.30906096,239.66,239.58,4.1732]
[1738339955234,0.03007867,239.64,239.6,0.02862523]
[1738339955429,4.1726,239.62,239.6,0.02862523]
[1738339955736,0.03007867,239.64,239.6,0.02862523]
[1738339955935,4.20237867,239.64,239.6,0.02862523]
[1738339956235,0.03007867,239.64,239.6,0.02862523]
[1738339956636,4.20237867,239.64,239.6,4.20152523]
[1738339957136,4.20237867,239.64,239.6,0.02862523]
[1738339957336,0.03007867,239.64,239.6,0.02862523]
[1738339957532,4.1728,239.61,239.6,0.02862523]
[1738339957733,0.03007867,239.64,239.6,0.02862523]
[1738339958936,4.1726,239.63,239.6,0.02862523]
[1738339959130,0.03007867,239.64,239.6,0.02862523]
[1738339959638,4.1728,239.62,239.6,0.02862523]
[1738339959840,0.03007867,239.64,239.6,0.02862523]
[1738339960031,11.30906096,239.63,239.6,0.02862523]
[1738339960236,4.1728,239.61,239.6,0.02862523]
[1738339960736,4.174,239.54,239.5,4.1747]
[1738339961238,11.30906096,239.57,239.5,4.1747]
[1738339961439,4.1738,239.56,239.51,4.1745]
[1738339961641,4.1738,239.56,239.48,1.4355]
[1738339961834,4.20027626,239.56,239.51,0.03181026]
[1738339962741,4.20027626,239.56,239.51,4.20621026]
[1738339963543,0.02647626,239.56,239.51,0.03181026]
[1738339964143,4.20027626,239.56,239.51,4.20631026]
[1738339965444,0.02647626,239.56,239.51,4.20631026]
[1738339965642,0.02647626,239.56,239.51,0.03181026]
[1738339966341,4.1738,239.55,239.51,4.20631026]
[1738339967543,4.1738,239.55,239.51,0.03181026]
[1738339967750,4.1738,239.55,239.52,4.1743]
[1738339969453,4.20017626,239.56,239.52,4.1743]
[1738339970052,0.02647626,239.56,239.52,4.1743]
[1738339970251,4.1738,239.55,239.51,4.20631026]
[1738339970648,0.02647626,239.56,239.51,4.20631026]
[1738339971051,4.20027626,239.56,239.51,4.20631026]
[1738339971349,4.20027626,239.56,239.51,0.03181026]
[1738339972153,4.20027626,239.56,239.51,4.20611026]
[1738339972458,0.02647626,239.56,239.51,4.20611026]
[1738339972749,4.1739,239.55,239.51,4.20611026]
[1738339973553,4.1743,239.52,239.51,0.03181026]
[1738339977755,4.1743,239.52,239.51,1.026e-05]
[1738339978246,4.1757,239.44,239.4,4.1764]
[1738339978645,11.30906096,239.5,239.4,4.1764]
[1738339978850,4.1756,239.45,239.4,4.1764]
[1738339979254,4.1754,239.46,239.38,2.7953]
[1738339979455,0.03154421,239.45,239.4,0.03070989]
[1738339979756,0.03154421,239.45,239.41,11.30906096]
[1738339980058,0.03154421,239.45,239.44,4.1757]
[1738339980551,0.03154421,239.45,239.44,15.48476096]
[1738339981449,0.03154421,239.45,239.44,4.1757]
[1738339981647,0.03154421,239.45,239.44,15.48476096]
[1738339984049,1.417,239.58,239.44,11.30906096]
[1738339984253,1.417,239.58,239.4,11.33977085]
[1738339984254,1.417,239.58,239.5,11.30906096]
[1738339984858,1.417,239.58,239.47,11.30906096]
[1738339985255,0.03041357,239.55,239.5,0.02772407]
[1738339985455,0.03041357,239.55,239.51,4.1744]
[1738339986359,4.20421357,239.55,239.5,0.02772407]
[1738339986560,0.03041357,239.55,239.5,0.02772407]
[1738339986862,4.1742,239.54,239.5,0.02772407]
[1738339987256,0.03041357,239.55,239.5,0.02772407]
[1738339987660,4.20441357,239.55,239.51,4.1745]
[1738339988365,4.174,239.54,239.5,0.02772407]
[1738339988962,4.174,239.54,239.5,4.20232407]
[1738339990665,4.1745,239.51,239.5,0.02772407]
[1738339991170,4.1745,239.51,239.5,2.407e-05]
[1738339991570,11.30906096,239.53,239.32,11.30906096]
[1738339991870,11.30906096,239.47,239.32,11.30906096]
[1738339992063,11.30906096,239.5,239.35,11.30906096]
[1738339992259,4.1759,239.44,239.38,4.1766]
[1738339992865,0.03168692,239.43,239.39,0.02872063]
[1738339993064,4.1763,239.41,239.39,0.02872063]
[1738339993265,0.03168692,239.43,239.39,0.02872063]
[1738339994171,8.692e-05,239.43,239.42,4.1761]
[1738339994375,66.38889205,239.57,239.41,11.30906096]
[1738339994564,66.38889205,239.57,239.46,11.30906096]
[1738339994965,4.1742,239.54,239.48,4.1749]
[1738339995169,4.1742,239.54,239.46,11.30906096]
[1738339995364,4.1742,239.54,239.48,0.03180295]
[1738339995571,0.03126965,239.52,239.48,0.03180295]
[1738339995969,4.20566965,239.52,239.48,0.03180295]
[1738339996677,0.03126965,239.52,239.48,0.03180295]
[1738339996876,0.03126965,239.52,239.48,4.20680295]
[1738339997376,0.03126965,239.52,239.48,0.03180295]
[1738339998076,4.1746,239.51,239.48,0.03180295]
[1738339998376,0.03126965,239.52,239.48,0.03180295]
[1738339999370,4.1749,239.49,239.48,0.03180295]
[1738340000180,0.03126965,239.52,239.31,114.39204325]
[1738340000181,4.1759,239.44,239.39,4.1765]
[1738340000579,11.30906096,239.47,239.31,129.87930421]
[1738340000777,4.1758,239.44,239.36,4.1769]
[1738340000976,11.30906096,239.47,239.36,4.1769]
[1738340001469,4.1763,239.41,239.39,0.02944704]
[1738340001874,11.33554218,239.44,239.39,0.02944704]
[1738340002073,11.30906096,239.41,239.29,21.84445878]
[1738340002273,11.30906096,239.37,239.29,21.84445878]
[1738340002776,2.8522,239.43,239.29,21.84445878]
[1738340002777,11.30906096,239.4,239.29,21.84445878]
[1738340003184,11.30906096,239.4,239.25,11.30906096]
[1738340003479,4.1773,239.35,239.32,0.02897455]
[1738340003675,0.03153894,239.37,239.32,0.02897455]
[1738340003874,0.03153894,239.37,239.36,4.1771]
[1738340005881,4.1752,239.48,239.42,4.1759]
[1738340006081,4.1752,239.48,239.33,4.1828]
[1738340006082,11.30906096,239.52,239.39,11.30906096]
[1738340006380,2.88,239.54,239.39,11.30906096]
[1738340006680,4.1748,239.5,239.44,4.1757]
[1738340006874,2.88,239.54,239.42,11.30906096]
[1738340007073,0.03131925,239.49,239.46,4.1753]
[1738340007279,0.03131925,239.49,239.45,0.02834191]
[1738340009182,4.20621925,239.49,239.45,0.02834191]
[1738340012884,0.03131925,239.49,239.46,4.1753]
[1738340013089,0.03131925,239.49,239.45,11.33740287]
[1738340013891,0.03131925,239.49,239.48,4.175]
[1738340016692,0.03131925,239.49,239.48,15.48406096]
[1738340016994,2.8383,239.62,239.48,11.30906096]
[1738340017190,2.8383,239.62,239.51,11.30906096]
[1738340017891,2.8383,239.62,239.53,4.1741]
[1738340018191,0.0295438,239.59,239.54,0.03126832]